Cogmind - Beta 9.5 *** ADVENTURER MODE // 2020.04.12 @ 22:59:46 Player: Photonicus Result: Destroyed by P-60 Hacker with Shock Rifle Performance ------------- Evolutions (3) 1500 Regions Visited (4) 800 Robots Destroyed (80) 400 Value Destroyed (2013) 2013 Prototype IDs (2) 40 Alien Tech Used (0) 0 Bonus (0) 0 TOTAL SCORE: 4753 Bonus ------- None Cogmind --------- Core Integrity 0/700 Matter 40/300 Energy 100/100 System Corruption 4% Temperature Cool (0) Movement Core (600) Ox11 Location -7/Factory Parts ------- > --- POWER (1) -------- (None) > --- PROPULSION (4) --- (None) > --- UTILITY (5) ------ Large Storage Unit Large Storage Unit Improved Signal Interpreter > --- WEAPON (3) ------- Mini Assault Cannon > --- INVENTORY (16) --- Light Deuterium Engine Light Deuterium Engine Light Deuterium Engine Improved Heat Sink Relay Coupler [NC] (28) Relay Coupler [Sentry] (22) Shock Rifle Gatling Laser EM Pulse Cannon EM Pulse Cannon EM Pulse Cannon EM Pulse Cannon Heavy Ion Cannon Remote Datajack Peak State ------------ > --- POWER ------------ Improved Deuterium Engine > --- PROPULSION ------- Titanium Leg Titanium Leg Titanium Leg Titanium Leg > --- UTILITY ---------- Improved Cooling System Large Storage Unit Large Storage Unit Improved Signal Interpreter Dynamic Insulation System > --- WEAPON ----------- Flak Gun Flak Gun Mini Assault Cannon > --- INVENTORY -------- Light Deuterium Engine Light Deuterium Engine Light Deuterium Engine Light Deuterium Engine Aluminum Leg Improved Carbon-fiber Leg Improved Heat Sink Shock Rifle Gatling Laser EM Pulse Cannon EM Pulse Cannon EM Pulse Cannon EM Pulse Cannon Advanced Beam Cannon Heavy Ion Cannon Remote Datajack [Rating: 46] Favorites ----------- Power Ion Engine Engine Ion Engine Propulsion Aluminum Leg Leg Aluminum Leg Utility Large Storage Unit Device Improved Sensor Array Storage Large Storage Unit Processor Improved Signal Interpreter Weapon EM Pulse Gun Energy Gun EM Pulse Gun Energy Cannon EM Pulse Cannon Ballistic Gun Flak Gun Ballistic Cannon Mini Assault Cannon Special Melee Weapon Improved Datajack Build | -11 -10 -9 -8 -7 ------- Run | Scr Mat Mat Mat Fac Slots Evolved 6 | . . 2 2 2 Power . | . . . . . Propulsion 2 | . . 2 . . Utility 3 | . . . 2 1 Weapon 1 | . . . . 1 Parts Attached 56 | 6 15 8 4 23 Power 5 | 1 1 1 . 2 Engine 5 | 1 1 1 . 2 Core . | . . . . . Reactor . | . . . . . Propulsion 17 | 2 5 5 . 5 Treads . | . . . . . Leg 17 | 2 5 5 . 5 Wheel . | . . . . . Hover . | . . . . . Flight . | . . . . . Utility 11 | 1 2 . 4 4 Device 7 | . . . 3 4 Storage 3 | 1 2 . . . Processor 1 | . . . 1 . Hackware . | . . . . . Protection . | . . . . . Artifact . | . . . . . Weapon 23 | 2 7 2 . 12 Energy Gun 14 | 2 7 2 . 3 Energy Cannon 3 | . . . . 3 Ballistic Gun 4 | . . . . 4 Ballistic Cannon 1 | . . . . 1 Launcher . | . . . . . Special Weapon . | . . . . . Impact Weapon . | . . . . . Slashing Weapon . | . . . . . Piercing Weapon . | . . . . . Special Melee Weapon 1 | . . . . 1 Unidentified Prototypes 1 | . . 1 . . Parts Lost 21 | . 1 . . 20 Power 2 | . . . . 2 Propulsion 7 | . . . . 7 Utility 4 | . . . . 4 Weapon 8 | . 1 . . 7 Highest Loss Streak 10 | . 1 . . 10 Average Slot Usage (%) 94 | . 95 100 99 91 Engine 10 | . 13 11 9 6 Leg 30 | . 27 44 36 26 Device 6 | . . . 10 12 Storage 20 | . 25 22 18 15 Processor 3 | . . . 7 7 Energy Gun 17 | . 26 22 18 7 Ballistic Gun 2 | . . . . 7 Naked Turns . | . . . . . Heaviest Build 58 | 13 41 46 48 58 Greatest Support 69 | 20 20 40 40 69 Greatest Overweight (x) 10 | . 10 1 1 2 Average Overweight (x) 1 | . 1 1 1 . Largest Inventory Capacity 16 | 6 16 16 16 16 Average Capacity 15 | 5 14 16 16 16 Most Carried 16 | 4 16 16 16 16 Average Carried 12 | 1 8 14 15 14 Final Capacity 16 | 6 16 16 16 16 Final Carried 16 | 2 16 16 16 14 Class Distribution -------------------- 43% | Mutant 35% | Scavenger-Mutant 11% | Gunner 8% | Scavenger-Skirmisher Dominant Class ---------------- Mutant | -10/Materials Scavenger-Mutant | -9/Materials Scavenger-Mutant | -8/Materials Scavenger-Mutant | -7/Factory Resources | -11 -10 -9 -8 -7 ----------- Run | Scr Mat Mat Mat Fac Matter Collected 1114 | 260 142 26 100 586 Remotely . | . . . . . Salvage Created 2999 | 92 454 420 282 1751 Parts 147 | . 27 34 13 73 Haulers Intercepted 6 | . 2 1 2 1 Recyclers Shooed 2 | . . . . 2 Parts Field Recycled . | . . . . . Retrieved Matter . | . . . . . Parts Self-Destructed . | . . . . . Prevented . | . . . . . Kills | -11 -10 -9 -8 -7 ------- Run | Scr Mat Mat Mat Fac Combat Hostiles Destroyed 47 | . 8 9 3 27 Guns 41 | . 7 8 3 23 Cannons 3 | . . . . 3 AOE 2 | . 1 1 . . Classes Destroyed 11 | 1 6 2 . 2 Worker 8 | . 1 . 1 6 Builder 4 | . 1 1 . 2 Hauler 6 | . 2 1 2 1 Recycler 5 | 1 . . . 4 Mechanic 2 | . . 1 . 1 Watcher 8 | . 1 3 2 2 Swarmer 17 | . 3 6 . 8 Grunt 18 | . 5 2 2 9 Duelist 1 | . . . . 1 Sentry 8 | . . 1 1 6 Programmer 3 | . . . . 3 Best Kill Streak 14 | 1 5 5 3 14 Combat Bots Only 5 | . 3 4 2 5 Max Kills in Single Turn 2 | 1 2 2 1 2 Gunslinging 1 | . 1 . . 1 Exploded 1 | . 1 1 . . Melee . | . . . . . Uniques/NPCs Destroyed . | . . . . . Combat | -11 -10 -9 -8 -7 -------- Run | Scr Mat Mat Mat Fac Damage Taken 3421 | . 173 142 93 3013 Core 779 | . 20 30 25 704 Absorbed by Shields . | . . . . . Core Remaining (%) 94 | 100 92 92 95 . Volleys Fired 169 | 1 21 26 14 107 Largest 3 | 2 2 2 2 3 Hottest 189 | 80 80 80 126 189 Shots Fired 349 | 2 42 52 28 225 Gun 322 | 2 42 52 28 198 Cannon 27 | . . . . 27 Launcher . | . . . . . Special . | . . . . . Kinetic 134 | . . . . 134 Thermal 119 | . . . 28 91 Explosive . | . . . . . Electromagnetic 96 | 2 42 52 . . Robot Hit Streak 55 | 1 8 10 16 55 Robot Miss Streak 5 | 1 4 1 1 5 Penetration Max . | . . . . . Secondary Targets 9 | . 2 1 . 6 Max Gunslinging Chain 1 | . 1 1 . 1 Shots Hit Robots 280 | 1 26 38 25 190 Core Hits 192 | 1 18 19 13 141 Critical Hits . | . . . . . Critical Kills . | . . . . . Critical Parts Destroyed . | . . . . . Melee Attacks . | . . . . . Impact . | . . . . . Slashing . | . . . . . Piercing . | . . . . . Sneak Attacks . | . . . . . Combat Hostiles . | . . . . . Follow-up Attacks . | . . . . . Damage Inflicted 5533 | 55 440 708 423 3907 Guns 4725 | 13 364 462 423 3463 Cannons 402 | . . . . 402 Explosions 358 | 42 70 246 . . Melee . | . . . . . Ramming 48 | . 6 . . 42 Kinetic 2497 | . . . . 2497 Thermal 2149 | 42 70 246 423 1368 Explosive . | . . . . . Electromagnetic 839 | 13 364 462 . . Impact . | . . . . . Slashing . | . . . . . Piercing . | . . . . . Highest Corruption 4 | . . . . 4 Average Corruption 2 | . . . . 2 Corruption Purged . | . . . . . Effects 15 | . . . . 15 Message Errors 6 | . . . . 6 Matter Fused 2 | . . . . 2 Heat Flow Errors 1 | . . . . 1 Energy Discharges 1 | . . . . 1 Data Loss (minor) 2 | . . . . 2 Targeting Errors 3 | . . . . 3 Overload Shots . | . . . . . Overflow Damage 30 | . . . . 30 Projectiles 30 | . . . . 30 Explosions . | . . . . . Melee . | . . . . . Knockbacks 3 | . . . . 3 Impact . | . . . . . Kinetic 3 | . . . . 3 Secondary . | . . . . . Self-Inflicted Damage 3 | . 3 . . . Shots . | . . . . . Rammed 1 | . 1 . . . Targets Rammed 5 | . 1 . . 4 Kicked 4 | . . . . 4 Crushed . | . . . . . Highest Temperature 215 | 18 127 45 215 134 Average Temperature 40 | 12 50 15 61 41 Received Heat Transfer 561 | . 81 . 54 426 Siege Activations . | . . . . . Robots Corrupted . | . . . . . Combat Hostiles . | . . . . . Parts Fried 3 | . 2 1 . . Impact Corruptions 1 | . . . . 1 Robots Melted 1 | . . . . 1 Combat Hostiles 1 | . . . . 1 Parts Melted 11 | . 1 1 5 4 Heat Transferred 4311 | 50 100 350 925 2886 Parts Sabotaged . | . . . . . Parts Stolen . | . . . . . Parts Stripped . | . . . . . Power Chain Reactions 7 | 1 2 4 . . Missiles Intercepted . | . . . . . Alert | -11 -10 -9 -8 -7 ------- Run | Scr Mat Mat Mat Fac Peak Influence 374 | 5 121 293 161 374 Average Influence 111 | 1 55 177 119 143 Maximum Alert Level 1 | . . 1 . 1 Low Security (%) 80 | 100 100 57 100 63 Level 1 19 | . . 42 . 36 Level 2 . | . . . . . Level 3 . | . . . . . Level 4 . | . . . . . Level 5 . | . . . . . High Security . | . . . . . Max Security . | . . . . . Squads Dispatched 15 | . 2 1 1 11 Investigation 5 | . 2 1 1 1 Extermination 3 | . . . . 3 Reinforcement 3 | . . . . 3 Assault . | . . . . . Garrison 4 | . . . . 4 Intercept . | . . . . . Construction Impeded . | . . . . . Haulers Reinforced . | . . . . . Stealth | -11 -10 -9 -8 -7 --------- Run | Scr Mat Mat Mat Fac Distress Signals 1 | . . 1 . . Communications Jammed . | . . . . . Distress Signals . | . . . . . Times Spotted 74 | . 10 16 5 43 Peak Tracking Total 7 | . 4 5 2 7 Tactical Retreats 2 | . . . . 2 Traps | -11 -10 -9 -8 -7 ------- Run | Scr Mat Mat Mat Fac Traps Triggered 7 | . 6 . 1 . Indirectly . | . . . . . Trap Hack Attempts . | . . . . . Triggered . | . . . . . Disarmed . | . . . . . Reprogrammed . | . . . . . Reused . | . . . . . Traps Extracted . | . . . . . Installed . | . . . . . Triggered . | . . . . . Machines | -11 -10 -9 -8 -7 ---------- Run | Scr Mat Mat Mat Fac Machines Disabled 1 | . . 1 . . Max in Single Turn 1 | . . 1 . . Garrison Access 1 | . . . . 1 Machines Sabotaged . | . . . . . Garrisons Compromised . | . . . . . Overloaded Fab Kills . | . . . . . Fab Network Shutdowns . | . . . . . Hacking | -11 -10 -9 -8 -7 --------- Run | Scr Mat Mat Mat Fac Machines Accessed 12 | . 3 2 . 7 Terminals 7 | . 2 2 . 3 Fabricators 1 | . . . . 1 Repair Stations 1 | . 1 . . . Recycling Units . | . . . . . Scanalyzers 2 | . . . . 2 Garrison Access 1 | . . . . 1 Total Hacks 27 | . 7 8 . 12 Successful 13 | . 4 4 . 5 Failed 14 | . 3 4 . 7 Catastrophic 5 | . 1 2 . 2 Database Lockouts . | . . . . . Manual 8 | . 5 . . 3 Terminals 15 | . 3 8 . 4 Fabricators 3 | . . . . 3 Repair Stations 4 | . 4 . . . Recycling Units . | . . . . . Scanalyzers 4 | . . . . 4 Garrison Access 1 | . . . . 1 Terminal Hacks 5 | . . 4 . 1 Record 2 | . . 2 . . Robot Analysis 2 | . . 2 . . Unreport Threat 1 | . . . . 1 Fabricator Hacks 1 | . . . . 1 Network Status 1 | . . . . 1 Repair Station Hacks 4 | . 4 . . . Scan Component 2 | . 2 . . . Repair 2 | . 2 . . . Recycling Unit Hacks . | . . . . . Scanalyzer 2 | . . . . 2 Insert Component 2 | . . . . 2 Garrison Access Hacks 1 | . . . . 1 Seal Access 1 | . . . . 1 Unauthorized Hacks . | . . . . . Terminals . | . . . . . Fabricators . | . . . . . Repair Stations . | . . . . . Recycling Units . | . . . . . Scanalyzers . | . . . . . Garrison Access . | . . . . . Data Cores Recovered . | . . . . . Used . | . . . . . Hacking Detections 12 | . 4 2 . 6 Full Trace Events 3 | . 1 1 . 1 Feedback Events . | . . . . . Feedback Blocked . | . . . . . Robot Schematics Acquired . | . . . . . Robots Built . | . . . . . Matter . | . . . . . Time . | . . . . . Total Robot Build Rating . | . . . . . Part Schematics Acquired . | . . . . . Parts Built . | . . . . . Matter . | . . . . . Time . | . . . . . Total Part Build Rating . | . . . . . Parts Repaired 2 | . 2 . . . Time 52 | . 52 . . . Parts Recycled . | . . . . . Recycled Matter . | . . . . . Retrieved Matter . | . . . . . Retrieved Components . | . . . . . Parts Scanalyzed . | . . . . . Part Schematics Acquired . | . . . . . Parts Damaged . | . . . . . Bothacking | -11 -10 -9 -8 -7 ------------ Run | Scr Mat Mat Mat Fac Used RIF Installer . | . . . . . Robots Hacked . | . . . . . Non-combat . | . . . . . Combat . | . . . . . Robot Hacks Applied . | . . . . . Relay Couplers Released 4 | . . . . 4 Programmers 4 | . . . . 4 Robots Rewired . | . . . . . Allies Hacked . | . . . . . Hacks Repelled . | . . . . . Allies | -11 -10 -9 -8 -7 -------- Run | Scr Mat Mat Mat Fac Total Allies . | . . . . . Largest Group . | . . . . . Highest-Rated Group . | . . . . . Highest-Rated Ally . | . . . . . Total Orders . | . . . . . Ally Attacks . | . . . . . Total Damage . | . . . . . Kills . | . . . . . Allies Corrupted . | . . . . . Allies Melted . | . . . . . Intel | -11 -10 -9 -8 -7 ------- Run | Scr Mat Mat Mat Fac Robot Analysis Total 2 | . . 2 . . Derelict Logs Recovered . | . . . . . Drone Launches . | . . . . . Drone Recoveries . | . . . . . Exploration | -11 -10 -9 -8 -7 ------------- Run | Scr Mat Mat Mat Fac Turns Passed 3566 | 63 1289 440 341 1433 Spaces Moved 1823 | 43 660 214 192 714 Core 11 | 7 4 . . . Treads . | . . . . . Legs 1812 | 36 656 214 192 714 Wheels . | . . . . . Hover . | . . . . . Flight . | . . . . . Fastest Speed 50 | 50 120 150 150 126 Average Speed 153 | 108 170 150 150 142 Slowest Speed 550 | 120 550 150 150 190 Overloaded Moves . | . . . . . Propulsion Burnouts . | . . . . . Robots Hopped . | . . . . . Cave-ins Triggered . | . . . . . Exploration Rate (%) 34 | 3 88 27 22 31 Regions Visited 4 Branch Regions . Pre-discovered Areas . | . . . . . Known Exits Taken 1 | . . . 1 . Unknown Exits Taken 3 | 1 1 1 . . Scrap Searched . | . . . . . Spaces Dug . | . . . . . Terrain Destroyed 29 | 5 4 14 . 6 Melee . | . . . . . Projectile 6 | . . . . 6 AOE 23 | 5 4 14 . . Actions | -11 -10 -9 -8 -7 --------- Run | Scr Mat Mat Mat Fac Total 2279 | 57 784 288 218 932 Wait 114 | . 52 1 1 60 Move 1819 | 42 659 213 191 714 Hop . | . . . . . Pick Up 80 | 8 31 21 5 15 Fast Attach 5 | . . . . 5 Attach 35 | 6 12 2 2 13 Detach . | . . . . . Swap 16 | . 3 6 2 5 Drop 36 | . 5 19 3 9 Fire 169 | 1 21 26 14 107 Melee . | . . . . . Ram . | . . . . . Kick 5 | . 1 . . 4 Crush . | . . . . . Escape Stasis . | . . . . . Rewire . | . . . . . Trap . | . . . . . Miscellaneous . | . . . . . Route ------- -11/Scrapyard -10/Materials (discovered 4 exits: *Mat x3 / [*Min]) -9/Materials -8/Materials -7/Factory (discovered 2 exits: *Fac / *Sto) History --------- Turn | Location | Event 20 | -11/Scrapyard | Discovered new exit (range 15) 64 | -11/Scrapyard | Entered Materials 115 | -10/Materials | Met 8R-AWN 138 | -10/Materials | Discovered new exit (range 11) 182 | -10/Materials | Discovered new exit (range 6) 300 | -10/Materials | Build established: Mutant 575 | -10/Materials | Discovered new exit (range 15) 823 | -10/Materials | Discovered new exit (range 8) 1211 | -10/Materials | Repaired EM Pulse Gun 1238 | -10/Materials | Repaired EM Pulse Gun 1353 | -10/Materials | Entered another Materials area 1353 | -9/Materials | Evolved 2 slots: Propulsion x2 1667 | -9/Materials | Build established: Scavenger-Mutant 1729 | -9/Materials | Discovered new exit (range 16) 1793 | -9/Materials | Entered another Materials area 1793 | -8/Materials | Evolved 2 slots: Utility x2 2031 | -8/Materials | Discovered new exit (range 8) 2133 | -8/Materials | Identified exit to Factory 2134 | -8/Materials | Entered Factory 2134 | -7/Factory | Evolved 2 slots: Utility x1, Weapon x1 2441 | -7/Factory | Build established: Scavenger-Skirmisher 2550 | -7/Factory | Lost 4 parts (1n3w) 2685 | -7/Factory | Discovered new exit (range 14) 2713 | -7/Factory | Identified exit to Storage 2751 | -7/Factory | Build established: Scavenger-Mutant 2969 | -7/Factory | Garrison activated, responded to threat 3019 | -7/Factory | Lost 3 parts (1n1u1w) 3171 | -7/Factory | Discovered new exit (range 11) 3199 | -7/Factory | Identified exit to Factory 3351 | -7/Factory | Garrison activated, responded to threat 3400 | -7/Factory | Build established: Gunner 3503 | -7/Factory | Core integrity fell below 50% 3559 | -7/Factory | Core integrity fell below 20% 3567 | -7/Factory | Destroyed by P-60 Hacker with Shock Rifle Last Messages --------------- Destroyed Shock Rifle. P-60 Hacker knocked back. WMIL#7FA&7YK/E2ND> I=9PZ=DZLWR8 O-24 Administrator: "IFF HANDSHAKE FAILED. SECURING TERMINAL." Kicked U-05 Engineer out of the way. ALERT: Hostiles spotted, dispatching reinforcements to Terminal F016. SIINLY7JBY XCEPAFDIZM WD Kicked U-05 Engineer out of the way. S-27 Virus misfires. P-60 Hacker resets S-27 Virus, system corruption cleaned. Critical hit. Imp. Deuterium Engine destroyed. Titanium Leg destroyed. Flak Gun destroyed. Titanium Leg destroyed. Lgt. Deuterium Engine destroyed. Imp. Carbon-fiber Leg destroyed. Titanium Leg destroyed. Dynamic Insulation System destroyed. P-60 Hacker resets S-27 Virus, system corruption cleaned. Map ----- +----------------------------------------------------+ | # #??????????????????# """ ????????????????? | | # #??????????????????# """ ????????????????? | | # ####################^ ?? #?????????????? | | # """ #?????????????? | | # """ ###???????????? | | # """ ??????????? | | + ????????????? | | # ????????????? | | # #???????????????????? | | ####+#############/### #???????????????????? | | ?# ! # """" ####+####???????????????????? | | ?# = # ""S"" ! # #???????????????????? | | ?# + "" "" #] #???????????????????? | | ?# # # """ #???????????????????? | | ?# ! ! # # """ #???????????????????? | | ?# # # """ /#???????????????????? | | ?# # """ # #???????????????????? | | ?# """" # """ # """ #???????????????????? | | ?# """" # """ ! # """ #???????????????????? | | ?# """" # # """ #???????????????????? | | ?# """" # ] # #???????????????????? | | ?# ???" # # """ #???????????????????? | | ?# ???" ############## """ #???????????????????? | | ?#????? #????????????# """ p#???????????????????? | | ???????#?????????????#sss sss#???????????????????? | | ?????????????????????# / @ #???????????????????? | | ?????????????????????#########???????????????????? | | | | | | | | | | | | | | | | | | | | | | | | | | | | | | | | | | | | | | | | | | | | | | | +----------------------------------------------------+ Best States ------------- Heat Dissipation 61 Energy Generation 16 Energy Capacity 290 Matter Stores 300 Matter Capacity 300 Sight Range 16 Robot Scan Range 13 Terrain Scan Density 10 EM Shielding 2 Resistance: KI 20 Resistance: TH 20 Resistance: EX 20 Resistance: EM 20 Resistance: I 20 Resistance: S 20 Resistance: P 20 Evasion (%) 40 Offensive Hacking 10 Item Schematics ----------------- None Robot Schematics ------------------ None Fabricated ------------ Nothing Alien Tech Used ----------------- None Achievements -------------- None Challenges ------------ None Game ------ Seed SurgeDisposableBoregun Manual? 0 Play Time 00:49:49 Cumulative 39.2 hours Start 2020.04.12 @ 22:08:49 End 2020.04.12 @ 22:59:46 Sessions 1 Manual Loads 0 Difficulty Adventurer Special Mode None Game No. 26 Rogue 0 Adventurer 26 Explorer 0 Win Type - Total 0 Types 0/0/0/0/0/0/0 Lore% 11 Gallery% 35 Achievement% 23 Wizard Run 0 Options --------- ASCII 0 Keyboard 0 Movement Mouse Keybinds 0 Fullscreen 1 Font 18/SmallcapsGlow Map View 76x50 Tactical HUD 0 Map Filters NONE Filters NONE Steam 1 RUN: f6c4319c-583a-4dc8-87e0-e841cc668fcc